[Event "Croatian 1A League 2022"]
[Site "Porec"]
[Date "2022.09.26"]
[Round "3.15"]
[White "Saric, Ante"]
[Black "Christiansen, Johan-Sebastian"]
[Result "1/2-1/2"]
[ECO "E02"]
[WhiteElo "2510"]
[BlackElo "2583"]
[Annotator "ChessBase"]
[PlyCount "61"]
[EventDate "2022.09.24"]
[EventType "team-tourn"]
[EventCountry "CRO"]
[SourceTitle "playchess.com"]
[Source "ChessBase"]
[SourceQuality "1"]
[TimeControl "40/5400+30:1800+30"]

1. Nf3 {[%emt 0:00:32]} d5 {[%emt 0:03:17]} 2. d4 {[%emt 0:00:07]} Nf6 {[%emt 0:01:12]} 3. c4 {[%emt 0:00:06]} e6 {[%emt 0:01:25]} 4. g3 {[%emt 0:00:07]} dxc4 {[%emt 0:03:31]} 5. Qa4+ {[%emt 0:00:47]} Nbd7 {[%emt 0:01:33]} 6. Bg2 {[%emt 0:00:00]} a6 {[%emt 0:00:54]} 7. Nc3 {[%emt 0:00:00]} Be7 {[%emt 0:09:14]} 8. Ne5 {[%emt 0:02:13]} O-O {[%emt 0:02:35]} 9. Nxd7 {[%emt 0:01:37]} Qxd7 {[%emt 0:07:07]} 10. Qxc4 {[%emt 0:01:39]} Rd8 {[%emt 0:00:13]} 11. Bf4 {[%emt 0:05:27]} c6 {[%emt 0:13:54]} 12. Rd1 {[%emt 0:03:20]} Nd5 {[%emt 0:00:08]} 13. O-O {[%emt 0:03:31]} a5 {[%emt 0:11:48]} 14. Qb3 {[%emt 0:04:06]} b5 {[%emt 0:05:22]} 15. Nxd5 {[%emt 0:21:44]} exd5 {[%emt 0:09:05]} 16. e4 {[%emt 0:02:07]} dxe4 {[%emt 0:08:11]} 17. Bxe4 {[%emt 0:00:21]} Bb7 {[%emt 0:00:02]} 18. Qc2 {[%emt 0:10:22]} g6 {[%emt 0:00:10]} 19. h4 {[%emt 0:06:46]} Bf6 {[%emt 0:02:23]} 20. Be3 {[%emt 0:05:13]} Qe6 {[%emt 0:04:57]} 21. a3 {[%emt 0:04:08]} Rd7 {[%emt 0:00:36]} 22. Rfe1 {[%emt 0:06:31]} Rad8 {[%emt 0:02:29]} 23. Bf3 {[%emt 0:01:46]} Qc4 {[%emt 0:02:12]} 24. Qxc4 {[%emt 0:00:45]} bxc4 {[%emt 0:00:02]} 25. Rc1 {[%emt 0:00:13]} Bxd4 {[%emt 0:08:25]} 26. Rxc4 {[%emt 0:02:16]} c5 {[%emt 0:00:01]} 27. Bxb7 {[%emt 0:00:30]} Rxb7 {[%emt 0:00:04]} 28. Rd1 {[%emt 0:00:52]} Rbd7 {[%emt 0:01:01]} 29. Bxd4 {[%emt 0:01:39]} cxd4 {[%emt 0:00:05]} 30. Rc5 {[%emt 0:01:04]} Rd5 {[%emt 0:01:24]} 31. b4 {[%emt 0:04:16]} 1/2-1/2

[Event "Croatian 1A League 2022"]
[Site "Porec"]
[Date "2022.09.26"]
[Round "3.16"]
[White "Martinovic, Sasa"]
[Black "Plenca, Julijan"]
[Result "1-0"]
[ECO "A85"]
[WhiteElo "2546"]
[BlackElo "2447"]
[Annotator "RC"]
[PlyCount "73"]
[EventDate "2022.09.24"]
[EventType "team-tourn"]
[EventCountry "CRO"]
[SourceTitle "playchess.com"]
[Source "ChessBase"]
[SourceQuality "1"]
[TimeControl "40/5400+30:1800+30"]

1. d4 {[%emt 0:00:03]} d5 {[%emt 0:00:12]} 2. c4 {[%emt 0:00:04]} e6 {[%emt 0:00:07]} 3. Nf3 {[%emt 0:00:04]} c6 {[%emt 0:00:41]} 4. e3 {[%emt 0:00:07]} Bd6 {[%emt 0:00:38]} 5. Nc3 {[%emt 0:02:05]} f5 {[%emt 0:00:20]} 6. Bd3 {[%emt 0:00:12]} Nf6 {[%emt 0:00:27]} 7. O-O {[%emt 0:00:36]} Ne4 {[%emt 0:00:25]} 8. Ne5 {[%emt 0:02:24]} O-O {[%emt 0:01:00]} 9. f3 {[%emt 0:07:04]} Nxc3 {[%emt 0:05:34]} 10. bxc3 {[%emt 0:00:03]} Nd7 {[%emt 0:04:32]} 11. f4 {[%emt 0:06:13]} Nf6 {[%emt 0:05:11]} 12. Qb3 {[%emt 0:03:34]} Qe7 {[%emt 0:07:27]} 13. a4 {[%emt 0:01:45]} c5 {[%emt 0:02:49]} 14. a5 {[%emt 0:04:48]} Bd7 {[%emt 0:04:11]} 15. Ba3 {[%emt 0:12:14]} b6 {[%emt 0:05:27]} 16. Qa2 {[%emt 0:13:48]} g6 {[%emt 0:02:38]} 17. h3 {[%emt 0:04:04]} Kh8 {[%emt 0:01:40]} 18. Bb2 {[%emt 0:01:09]} b5 {[%emt 0:07:05]} 19. dxc5 {[%emt 0:08:28]} Bxc5 {[%emt 0:03:22]} 20. cxb5 {[%emt 0:00:04]} Bxe3+ {[%emt 0:00:35]} 21. Kh2 {[%emt 0:02:34]} Ng4+ {[%emt 0:01:29]} 22. Nxg4 {[%emt 0:00:45]} fxg4 {[%emt 0:00:05]} 23. g3 {[%emt 0:02:25]} Kg8 {[%emt 0:13:38]} 24. Rae1 {[%emt 0:08:13]} Bc5 {[%emt 0:01:29]} 25. c4 {[%emt 0:01:05]} d4 {[%emt 0:00:47]} 26. hxg4 {[%emt 0:00:36]} g5 {[%emt 0:03:52]} 27. Bc1 {[%emt 0:02:24]} gxf4 {[%emt 0:01:12]} 28. Bxf4 {[%emt 0:00:40]} Bd6 {[%emt 0:02:11]} 29. Bxd6 {[%emt 0:03:30]} Qxd6 {[%emt 0:00:06]} 30. Qe2 {[%emt 0:00:14]} Rxf1 {[%emt 0:00:35]} 31. Rxf1 {[%emt 0:00:24]} e5 {[%emt 0:02:02]} 32. Qf3 {[%emt 0:02:51]} Qh6+ {[%emt 0:01:13]} 33. Kg2 {[%emt 0:03:51]} Rd8 {[%emt 0:03:11]} 34. Qf7+ {[%emt 0:00:00]} Kh8 {[%emt 0:00:05]} 35. Qe7 {[%emt 0:00:00]} Rg8 {[%emt 0:01:04]} 36. Qxe5+ {[%emt 0:01:30]} Qg7 {[%emt 0:00:05]} 37. Qxg7+ {[%emt 0:00:03]} 1-0

[Event "Croatian 1A League 2022"]
[Site "Porec"]
[Date "2022.09.26"]
[Round "3.17"]
[White "Plenca, Jadranko"]
[Black "Rogic, Davor"]
[Result "1-0"]
[ECO "C91"]
[WhiteElo "2412"]
[BlackElo "2458"]
[Annotator "RC"]
[PlyCount "91"]
[EventDate "2022.09.24"]
[EventType "team-tourn"]
[EventCountry "CRO"]
[SourceTitle "playchess.com"]
[Source "ChessBase"]
[SourceQuality "1"]
[TimeControl "40/5400+30:1800+30"]

1. e4 {[%emt 0:00:04]} e5 {[%emt 0:00:35]} 2. Nf3 {[%emt 0:00:21]} Nc6 {[%emt 0:00:20]} 3. Bb5 {[%emt 0:00:43]} a6 {[%emt 0:00:50]} 4. Ba4 {[%emt 0:00:20]} Nf6 {[%emt 0:00:39]} 5. O-O {[%emt 0:00:56]} Be7 {[%emt 0:00:46]} 6. Re1 {[%emt 0:00:54]} b5 {[%emt 0:00:40]} 7. Bb3 {[%emt 0:00:07]} d6 {[%emt 0:00:39]} 8. c3 {[%emt 0:00:19]} O-O {[%emt 0:01:21]} 9. d4 {[%emt 0:00:39]} Bg4 {[%emt 0:00:56]} 10. Be3 {[%emt 0:00:47]} Bh5 {[%emt 0:02:55]} 11. h3 {[%emt 0:03:54]} exd4 {[%emt 0:14:56]} 12. cxd4 {[%emt 0:00:22]} Na5 {[%emt 0:01:25]} 13. Bc2 {[%emt 0:00:26]} d5 {[%emt 0:04:10]} 14. e5 {[%emt 0:02:46]} Ne4 {[%emt 0:01:18]} 15. Nc3 {[%emt 0:01:03]} Nxc3 {[%emt 0:03:30]} 16. bxc3 {[%emt 0:00:05]} Nc4 {[%emt 0:01:33]} 17. Bf5 {[%emt 0:18:47]} Rb8 {[%emt 0:07:32]} 18. Bf4 {[%emt 0:06:11]} Rb6 {[%emt 0:04:48]} 19. Qd3 {[%emt 0:04:39]} Bg6 {[%emt 0:02:34]} 20. Bxg6 {[%emt 0:09:21]} Rxg6 {[%emt 0:02:46]} 21. Bg3 {[%emt 0:01:11]} Rb6 {[%emt 0:07:06]} 22. Re2 {[%emt 0:01:39]} Qd7 {[%emt 0:03:42]} 23. Nh2 {[%emt 0:01:51]} b4 {[%emt 0:03:15]} 24. cxb4 {[%emt 0:01:46]} Rxb4 {[%emt 0:01:27]} 25. Rae1 {[%emt 0:01:55]} Ra4 {[%emt 0:03:10]} 26. Ng4 {[%emt 0:05:16]} Ra3 {[%emt 0:04:17]} 27. Qb1 {[%emt 0:01:00]} a5 {[%emt 0:03:37]} 28. Qb7 {[%emt 0:09:32]} Bb4 {[%emt 0:04:28]} 29. Rc1 {[%emt 0:01:19]} Rd3 {[%emt 0:02:25]} 30. e6 {[%emt 0:05:25]} fxe6 {[%emt 0:00:26]} 31. Ne5 {[%emt 0:00:14]} Nxe5 {[%emt 0:00:42]} 32. Rxc7 {[%emt 0:00:51]} Qxc7 {[%emt 0:03:07]} 33. Qxc7 {[%emt 0:00:04]} Nc4 {[%emt 0:00:16]} 34. Kh2 {[%emt 0:02:22]} Rxd4 {[%emt 0:06:23]} 35. Rxe6 {[%emt 0:01:10]} Rd2 {[%emt 0:02:31]} 36. Qd7 {[%emt 0:01:01]} h6 {[%emt 0:02:24]} 37. Rc6 {[%emt 0:03:22]} Kh7 {[%emt 0:02:01]} 38. Rc7 {[%emt 0:00:54]} Bc3 {[%emt 0:00:43]} 39. Rc5 {[%emt 0:01:14]} Bb4 {[%emt 0:01:21]} 40. Rc7 {[%emt 0:00:00]} Bc3 {[%emt 0:00:00]} 41. Qe7 {[%emt 0:03:46]} Rf5 {[%emt 0:04:55]} 42. Rd7 {[%emt 0:04:53]} a4 {[%emt 0:05:42]} 43. Qe6 {[%emt 0:00:48]} Rf6 {[%emt 0:07:16]} 44. Qg4 {[%emt 0:00:06]} Rg6 {[%emt 0:04:53]} 45. Qf5 {[%emt 0:00:28]} Rxa2 {[%emt 0:02:28]} 46. h4 {[%emt 0:00:12]} 1-0

[Event "Croatian 1A League 2022"]
[Site "Porec"]
[Date "2022.09.26"]
[Round "3.18"]
[White "Kurajica, Bojan"]
[Black "Cotic, Borna"]
[Result "1-0"]
[ECO "E17"]
[WhiteElo "2488"]
[BlackElo "2133"]
[Annotator "RC"]
[PlyCount "101"]
[EventDate "2022.09.24"]
[EventType "team-tourn"]
[EventCountry "CRO"]
[SourceTitle "playchess.com"]
[Source "ChessBase"]
[SourceQuality "1"]
[TimeControl "40/5400+30:1800+30"]

1. Nf3 {[%emt 0:00:48]} Nf6 {[%emt 0:00:11]} 2. g3 {[%emt 0:00:25]} d5 {[%emt 0:00:17]} 3. Bg2 {[%emt 0:00:06]} e6 {[%emt 0:00:37]} 4. c4 {[%emt 0:00:32]} Be7 {[%emt 0:00:35]} 5. b3 {[%emt 0:00:42]} O-O {[%emt 0:00:40]} 6. Bb2 {[%emt 0:00:24]} b6 {[%emt 0:00:37]} 7. cxd5 {[%emt 0:00:29]} exd5 {[%emt 0:00:13]} 8. O-O {[%emt 0:00:18]} Bb7 {[%emt 0:00:19]} 9. d4 {[%emt 0:00:23]} Nbd7 {[%emt 0:00:35]} 10. Nc3 {[%emt 0:01:05]} Re8 {[%emt 0:00:55]} 11. Rc1 {[%emt 0:06:34]} Bf8 {[%emt 0:02:03]} 12. Qc2 {[%emt 0:03:05]} c6 {[%emt 0:07:30]} 13. Rfe1 {[%emt 0:04:32]} Rc8 {[%emt 0:10:19]} 14. a3 {[%emt 0:06:48]} c5 {[%emt 0:19:22]} 15. Qf5 {[%emt 0:08:32]} Qe7 {[%emt 0:19:39]} 16. e3 {[%emt 0:08:36]} g6 {[%emt 0:11:07]} 17. Qf4 {[%emt 0:03:24]} Nh5 {[%emt 0:03:26]} 18. Qg4 {[%emt 0:04:20]} f5 {[%emt 0:02:10]} 19. Qh3 {[%emt 0:00:54]} Nhf6 {[%emt 0:00:34]} 20. Qh4 {[%emt 0:03:39]} Ne4 {[%emt 0:03:13]} 21. Qxe7 {[%emt 0:00:16]} Bxe7 {[%emt 0:00:39]} 22. Red1 {[%emt 0:12:26]} c4 {[%emt 0:01:05]} 23. b4 {[%emt 0:09:03]} Nxc3 {[%emt 0:01:43]} 24. Bxc3 {[%emt 0:00:13]} Nf6 {[%emt 0:07:32]} 25. Ne5 {[%emt 0:00:55]} Bd6 {[%emt 0:00:53]} 26. f3 {[%emt 0:00:56]} Rcd8 {[%emt 0:02:10]} 27. h3 {[%emt 0:01:19]} Nd7 {[%emt 0:01:32]} 28. f4 {[%emt 0:00:12]} Nf6 {[%emt 0:04:00]} 29. Nxc4 {[%emt 0:01:44]} dxc4 {[%emt 0:00:24]} 30. Bxb7 {[%emt 0:00:06]} Rxe3 {[%emt 0:00:06]} 31. Kf2 {[%emt 0:00:45]} Rde8 {[%emt 0:00:32]} 32. Re1 {[%emt 0:01:05]} Rxe1 {[%emt 0:00:22]} 33. Rxe1 {[%emt 0:00:06]} Ne4+ {[%emt 0:00:35]} 34. Kf3 {[%emt 0:00:48]} Kf8 {[%emt 0:01:04]} 35. Bxe4 {[%emt 0:00:24]} fxe4+ {[%emt 0:00:01]} 36. Rxe4 {[%emt 0:00:06]} Rd8 {[%emt 0:00:30]} 37. a4 {[%emt 0:01:38]} a6 {[%emt 0:00:17]} 38. Re6 {[%emt 0:04:53]} Kf7 {[%emt 0:00:13]} 39. d5 {[%emt 0:00:11]} b5 {[%emt 0:00:53]} 40. axb5 {[%emt 0:00:00]} axb5 {[%emt 0:00:00]} 41. g4 {[%emt 0:04:48]} Rd7 {[%emt 0:03:00]} 42. Ke4 {[%emt 0:03:40]} Kf8 {[%emt 0:01:52]} 43. h4 {[%emt 0:04:53]} Kf7 {[%emt 0:00:09]} 44. g5 {[%emt 0:06:50]} Re7 {[%emt 0:12:21]} 45. f5 {[%emt 0:00:32]} Bg3 {[%emt 0:10:13]} 46. h5 {[%emt 0:06:42]} gxf5+ {[%emt 0:00:43]} 47. Kxf5 {[%emt 0:00:07]} Rd7 {[%emt 0:00:06]} 48. g6+ {[%emt 0:00:44]} hxg6+ {[%emt 0:00:11]} 49. hxg6+ {[%emt 0:00:08]} Kf8 {[%emt 0:00:12]} 50. g7+ {[%emt 0:00:28]} Kf7 {[%emt 0:00:05]} 51. Rf6+ {[%emt 0:01:11]} 1-0

[Event "Croatian 1A League 2022"]
[Site "Porec"]
[Date "2022.09.26"]
[Round "3.19"]
[White "Kozul, Zdenko"]
[Black "Motylev, Alexander"]
[Result "1/2-1/2"]
[ECO "E11"]
[WhiteElo "2549"]
[BlackElo "2635"]
[Annotator "RC"]
[PlyCount "23"]
[EventDate "2022.09.24"]
[EventType "team-tourn"]
[EventCountry "CRO"]
[SourceTitle "playchess.com"]
[Source "ChessBase"]
[SourceQuality "1"]
[TimeControl "40/5400+30:1800+30"]

1. d4 {[%emt 0:00:15]} Nf6 {[%emt 0:00:26]} 2. c4 {[%emt 0:00:07]} e6 {[%emt 0:00:05]} 3. g3 {[%emt 0:02:08]} d5 {[%emt 0:01:01]} 4. Bg2 {[%emt 0:00:08]} Bb4+ {[%emt 0:00:16]} 5. Bd2 {[%emt 0:01:24]} Be7 {[%emt 0:00:32]} 6. Nf3 {[%emt 0:00:07]} O-O {[%emt 0:00:07]} 7. O-O {[%emt 0:00:05]} c6 {[%emt 0:00:03]} 8. Qc2 {[%emt 0:02:49]} Nbd7 {[%emt 0:00:35]} 9. Rd1 {[%emt 0:03:07]} b6 {[%emt 0:00:28]} 10. a4 {[%emt 0:10:02]} a5 {[%emt 0:02:40]} 11. cxd5 {[%emt 0:00:15]} cxd5 {[%emt 0:00:28]} 12. Nc3 {[%emt 0:00:05]} 1/2-1/2

[Event "Croatian 1A League 2022"]
[Site "Porec"]
[Date "2022.09.26"]
[Round "3.20"]
[White "Postny, Evgeny"]
[Black "Stevic, Hrvoje"]
[Result "1-0"]
[ECO "D23"]
[WhiteElo "2573"]
[BlackElo "2565"]
[Annotator "RC"]
[PlyCount "35"]
[EventDate "2022.09.24"]
[EventType "team-tourn"]
[EventCountry "CRO"]
[SourceTitle "playchess.com"]
[Source "ChessBase"]
[SourceQuality "1"]
[TimeControl "40/5400+30:1800+30"]

1. d4 {[%emt 0:00:03]} d5 {[%emt 0:02:56]} 2. c4 {[%emt 0:00:09]} dxc4 {[%emt 0:00:06]} 3. Nf3 {[%emt 0:00:10]} Nf6 {[%emt 0:00:09]} 4. Qa4+ {[%emt 0:00:21]} Nc6 {[%emt 0:00:55]} 5. Qxc4 {[%emt 0:00:17]} e5 {[%emt 0:05:16]} 6. Nxe5 {[%emt 0:01:16]} Nxe5 {[%emt 0:00:21]} 7. dxe5 {[%emt 0:00:05]} Ng4 {[%emt 0:00:29]} 8. Bf4 {[%emt 0:17:12]} c6 {[%emt 0:05:01]} 9. Nd2 {[%emt 0:07:30]} Be6 {[%emt 0:25:48]} 10. Qc2 {[%emt 0:24:55]} Qa5 {[%emt 0:01:40]} 11. a3 {[%emt 0:02:04]} Nxe5 {[%emt 0:13:52]} 12. e3 {[%emt 0:05:54]} O-O-O {[%emt 0:04:27]} 13. Rc1 {[%emt 0:08:09]} Ng4 {[%emt 0:10:50]} 14. Be2 {[%emt 0:14:25]} Nxf2 {[%emt 0:10:32]} 15. b4 {[%emt 0:00:15]} Qf5 {[%emt 0:06:19]} 16. Kxf2 {[%emt 0:02:11]} g5 {[%emt 0:02:24]} 17. Qxf5 {[%emt 0:01:18]} Bxf5 {[%emt 0:00:05]} 18. Be5 {[%emt 0:00:07]} 1-0

[Event "Croatian 1A League 2022"]
[Site "Porec"]
[Date "2022.09.26"]
[Round "3.21"]
[White "Palac, Mladen"]
[Black "Bosiocic, Marin"]
[Result "1-0"]
[ECO "B30"]
[WhiteElo "2516"]
[BlackElo "2548"]
[Annotator "RC"]
[PlyCount "85"]
[EventDate "2022.09.24"]
[EventType "team-tourn"]
[EventCountry "CRO"]
[SourceTitle "playchess.com"]
[Source "ChessBase"]
[SourceQuality "1"]
[TimeControl "40/5400+30:1800+30"]

1. e4 {[%emt 0:01:03]} c5 {[%emt 0:00:13]} 2. Nf3 {[%emt 0:00:08]} Nc6 {[%emt 0:00:07]} 3. Bb5 {[%emt 0:00:35]} e6 {[%emt 0:00:08]} 4. O-O {[%emt 0:00:27]} Nge7 {[%emt 0:00:12]} 5. Re1 {[%emt 0:00:25]} a6 {[%emt 0:00:07]} 6. Bf1 {[%emt 0:00:27]} d5 {[%emt 0:00:13]} 7. exd5 {[%emt 0:00:25]} Nxd5 {[%emt 0:00:09]} 8. d4 {[%emt 0:00:06]} Nf6 {[%emt 0:00:10]} 9. Be3 {[%emt 0:00:44]} Be7 {[%emt 0:00:28]} 10. c4 {[%emt 0:00:13]} O-O {[%emt 0:00:23]} 11. Nc3 {[%emt 0:00:03]} cxd4 {[%emt 0:00:33]} 12. Nxd4 {[%emt 0:00:08]} Ne5 {[%emt 0:00:14]} 13. h3 {[%emt 0:05:06]} Bd7 {[%emt 0:01:47]} 14. Rc1 {[%emt 0:04:48]} Rc8 {[%emt 0:02:43]} 15. Qb3 {[%emt 0:01:09]} Qc7 {[%emt 0:01:32]} 16. Na4 {[%emt 0:00:22]} Rcd8 {[%emt 0:06:57]} 17. Qb6 {[%emt 0:03:05]} Qc8 {[%emt 0:20:19]} 18. Qa5 {[%emt 0:00:02]} Bd6 {[%emt 0:04:21]} 19. Nb6 {[%emt 0:13:00]} Qb8 {[%emt 0:03:28]} 20. Qc3 {[%emt 0:17:03]} Bc6 {[%emt 0:04:51]} 21. b4 {[%emt 0:07:31]} Be4 {[%emt 0:02:25]} 22. c5 {[%emt 0:08:46]} Bc7 {[%emt 0:00:27]} 23. b5 {[%emt 0:00:01]} axb5 {[%emt 0:02:34]} 24. Bxb5 {[%emt 0:04:52]} Ng6 {[%emt 0:11:21]} 25. Bg5 {[%emt 0:08:20]} Bxb6 {[%emt 0:07:10]} 26. cxb6 {[%emt 0:05:30]} Qe5 {[%emt 0:03:32]} 27. Bxf6 {[%emt 0:02:56]} gxf6 {[%emt 0:00:09]} 28. Rcd1 {[%emt 0:03:29]} Nf4 {[%emt 0:07:05]} 29. Bf1 {[%emt 0:01:14]} Kh8 {[%emt 0:03:10]} 30. f3 {[%emt 0:06:03]} Rc8 {[%emt 0:11:33]} 31. Qd2 {[%emt 0:02:59]} Rg8 {[%emt 0:00:49]} 32. Kh1 {[%emt 0:01:15]} Nxh3 {[%emt 0:02:04]} 33. gxh3 {[%emt 0:00:04]} Qg3 {[%emt 0:03:47]} 34. Qg2 {[%emt 0:01:49]} Qb8 {[%emt 0:01:00]} 35. Qh2 {[%emt 0:00:14]} Qxh2+ {[%emt 0:01:13]} 36. Kxh2 {[%emt 0:00:01]} Bd5 {[%emt 0:00:05]} 37. Rd2 {[%emt 0:01:36]} Rc3 {[%emt 0:00:31]} 38. Bg2 {[%emt 0:01:08]} Ra3 {[%emt 0:00:14]} 39. Nb5 {[%emt 0:00:40]} Ra5 {[%emt 0:00:47]} 40. Nc3 {[%emt 0:00:00]} Bc6 {[%emt 0:00:00]} 41. f4 {[%emt 0:03:09]} Rc8 {[%emt 0:00:21]} 42. Bxc6 {[%emt 0:01:42]} Rxc6 {[%emt 0:00:08]} 43. Rg1 {[%emt 0:00:42]} 1-0

[Event "Croatian 1A League 2022"]
[Site "Porec"]
[Date "2022.09.26"]
[Round "3.22"]
[White "Fucak, Emilio Milko"]
[Black "Petkov, Vladimir"]
[Result "0-1"]
[ECO "A21"]
[WhiteElo "2187"]
[BlackElo "2451"]
[Annotator "RC"]
[PlyCount "52"]
[EventDate "2022.09.24"]
[EventType "team-tourn"]
[EventCountry "CRO"]
[SourceTitle "playchess.com"]
[Source "ChessBase"]
[SourceQuality "1"]
[TimeControl "40/5400+30:1800+30"]

1. c4 {[%emt 0:00:02]} e5 {[%emt 0:00:26]} 2. g3 {[%emt 0:00:09]} d6 {[%emt 0:00:26]} 3. Bg2 {[%emt 0:00:20]} f5 {[%emt 0:00:17]} 4. d3 {[%emt 0:01:36]} Nf6 {[%emt 0:00:58]} 5. Nc3 {[%emt 0:00:21]} Be7 {[%emt 0:01:22]} 6. e4 {[%emt 0:01:08]} c6 {[%emt 0:01:04]} 7. Nge2 {[%emt 0:00:26]} O-O {[%emt 0:00:51]} 8. O-O {[%emt 0:01:03]} Qe8 {[%emt 0:01:27]} 9. exf5 {[%emt 0:15:30]} Bxf5 {[%emt 0:02:19]} 10. Ne4 {[%emt 0:00:22]} Na6 {[%emt 0:21:06]} 11. N2c3 {[%emt 0:12:40]} Qd7 {[%emt 0:03:52]} 12. Be3 {[%emt 0:05:03]} Kh8 {[%emt 0:06:10]} 13. a3 {[%emt 0:01:58]} Ng4 {[%emt 0:07:37]} 14. Bg5 {[%emt 0:02:48]} Bxg5 {[%emt 0:06:08]} 15. Nxg5 {[%emt 0:00:04]} h6 {[%emt 0:01:39]} 16. Nf3 {[%emt 0:16:54]} Nc5 {[%emt 0:01:02]} 17. Ne1 {[%emt 0:01:38]} Rf7 {[%emt 0:09:34]} 18. b4 {[%emt 0:06:10]} Ne6 {[%emt 0:00:00]} 19. Ne2 {[%emt 0:07:31]} Raf8 {[%emt 0:00:00]} 20. Qd2 {[%emt 0:00:31]} Ng5 {[%emt 0:10:40]} 21. f3 {[%emt 0:01:33]} Nf6 {[%emt 0:00:45]} 22. Qe3 {[%emt 0:01:21]} Bh3 {[%emt 0:02:22]} 23. Ra2 {[%emt 0:03:12]} Bxg2 {[%emt 0:01:08]} 24. Nxg2 {[%emt 0:03:19]} Ng4 {[%emt 0:02:15]} 25. Qxa7 {[%emt 0:00:31]} Nxf3+ {[%emt 0:00:13]} 26. Kh1 {[%emt 0:00:55]} Ngxh2 {[%emt 0:00:32]} 0-1

[Event "Croatian 1A League 2022"]
[Site "Porec"]
[Date "2022.09.26"]
[Round "3.23"]
[White "Zelcic, Robert"]
[Black "Medancic, Rikard"]
[Result "1-0"]
[ECO "B06"]
[WhiteElo "2495"]
[BlackElo "2120"]
[Annotator "RC"]
[PlyCount "81"]
[EventDate "2022.09.24"]
[EventType "team-tourn"]
[EventCountry "CRO"]
[SourceTitle "playchess.com"]
[Source "ChessBase"]
[SourceQuality "1"]
[TimeControl "40/5400+30:1800+30"]

1. e4 {[%emt 0:00:05]} g6 {[%emt 0:02:35]} 2. d4 {[%emt 0:00:08]} Bg7 {[%emt 0:00:06]} 3. Nc3 {[%emt 0:00:04]} d6 {[%emt 0:00:06]} 4. f4 {[%emt 0:00:29]} a6 {[%emt 0:00:09]} 5. Nf3 {[%emt 0:00:04]} e6 {[%emt 0:00:58]} 6. Bd3 {[%emt 0:00:04]} Ne7 {[%emt 0:00:24]} 7. e5 {[%emt 0:00:13]} b6 {[%emt 0:06:03]} 8. Ne4 {[%emt 0:04:26]} Bb7 {[%emt 0:06:39]} 9. Qe2 {[%emt 0:15:31]} Bxe4 {[%emt 0:17:32]} 10. Qxe4 {[%emt 0:05:04]} d5 {[%emt 0:00:47]} 11. Qe3 {[%emt 0:00:05]} Qc8 {[%emt 0:00:47]} 12. b4 {[%emt 0:01:04]} Nd7 {[%emt 0:01:37]} 13. O-O {[%emt 0:02:10]} b5 {[%emt 0:02:39]} 14. a4 {[%emt 0:20:01]} c6 {[%emt 0:01:31]} 15. a5 {[%emt 0:00:45]} h6 {[%emt 0:03:19]} 16. Bd2 {[%emt 0:00:16]} Nf8 {[%emt 0:02:30]} 17. Kf2 {[%emt 0:00:34]} Qd7 {[%emt 0:02:05]} 18. Ke2 {[%emt 0:00:08]} h5 {[%emt 0:04:46]} 19. h3 {[%emt 0:00:29]} O-O-O {[%emt 0:01:25]} 20. g4 {[%emt 0:01:14]} Kb7 {[%emt 0:00:38]} 21. Rg1 {[%emt 0:04:05]} Qc7 {[%emt 0:04:48]} 22. Raf1 {[%emt 0:01:57]} hxg4 {[%emt 0:11:04]} 23. hxg4 {[%emt 0:00:11]} Re8 {[%emt 0:00:11]} 24. Rh1 {[%emt 0:00:43]} f6 {[%emt 0:01:23]} 25. Rxh8 {[%emt 0:03:11]} Bxh8 {[%emt 0:00:21]} 26. Rh1 {[%emt 0:04:08]} Bg7 {[%emt 0:00:07]} 27. exf6 {[%emt 0:00:03]} Bxf6 {[%emt 0:00:07]} 28. Ne5 {[%emt 0:00:03]} Bg7 {[%emt 0:03:55]} 29. Be1 {[%emt 0:00:20]} Kc8 {[%emt 0:19:58]} 30. Bh4 {[%emt 0:00:48]} Kb7 {[%emt 0:02:52]} 31. c3 {[%emt 0:00:57]} Nc8 {[%emt 0:00:23]} 32. Nxg6 {[%emt 0:08:58]} Nd6 {[%emt 0:00:27]} 33. Ne5 {[%emt 0:01:35]} Nd7 {[%emt 0:00:30]} 34. Bg5 {[%emt 0:00:25]} Rh8 {[%emt 0:00:31]} 35. Rh5 {[%emt 0:00:58]} Nf6 {[%emt 0:01:03]} 36. Rxh8 {[%emt 0:04:02]} Bxh8 {[%emt 0:00:07]} 37. Qh3 {[%emt 0:00:19]} Bg7 {[%emt 0:00:41]} 38. Bxf6 {[%emt 0:00:38]} Bxf6 {[%emt 0:00:06]} 39. g5 {[%emt 0:00:08]} Bxe5 {[%emt 0:00:42]} 40. dxe5 {[%emt 0:00:00]} Ne8 {[%emt 0:00:00]} 41. Qxe6 {[%emt 0:01:20]} 1-0

[Event "Croatian 1A League 2022"]
[Site "Porec"]
[Date "2022.09.26"]
[Round "3.24"]
[White "Mihalic, Goran"]
[Black "Jankovic, Alojzije"]
[Result "0-1"]
[ECO "B07"]
[WhiteElo "2023"]
[BlackElo "2548"]
[Annotator "RC"]
[PlyCount "58"]
[EventDate "2022.09.24"]
[EventType "team-tourn"]
[EventCountry "CRO"]
[SourceTitle "playchess.com"]
[Source "ChessBase"]
[SourceQuality "1"]
[TimeControl "40/5400+30:1800+30"]

1. Nf3 {[%emt 0:00:10]} Nf6 {[%emt 0:06:13]} 2. g3 {[%emt 0:00:13]} g6 {[%emt 0:00:17]} 3. Bg2 {[%emt 0:00:13]} Bg7 {[%emt 0:00:03]} 4. O-O {[%emt 0:00:26]} O-O {[%emt 0:00:05]} 5. d4 {[%emt 0:01:11]} d6 {[%emt 0:01:14]} 6. Nc3 {[%emt 0:00:52]} Nbd7 {[%emt 0:01:59]} 7. e4 {[%emt 0:01:17]} e5 {[%emt 0:00:18]} 8. h3 {[%emt 0:03:11]} a6 {[%emt 0:06:23]} 9. a4 {[%emt 0:05:47]} a5 {[%emt 0:02:23]} 10. Be3 {[%emt 0:06:13]} Re8 {[%emt 0:01:18]} 11. dxe5 {[%emt 0:02:29]} dxe5 {[%emt 0:00:16]} 12. Qd2 {[%emt 0:00:48]} c6 {[%emt 0:01:17]} 13. Rfd1 {[%emt 0:01:53]} Bf8 {[%emt 0:01:12]} 14. Nh2 {[%emt 0:06:09]} Qe7 {[%emt 0:09:13]} 15. Bg5 {[%emt 0:11:32]} Nc5 {[%emt 0:03:13]} 16. Ng4 {[%emt 0:02:47]} Bxg4 {[%emt 0:02:16]} 17. hxg4 {[%emt 0:00:11]} Ne6 {[%emt 0:01:13]} 18. Bh3 {[%emt 0:17:07]} Rad8 {[%emt 0:04:44]} 19. Qe3 {[%emt 0:02:10]} Nd4 {[%emt 0:04:30]} 20. Rac1 {[%emt 0:01:52]} Qe6 {[%emt 0:03:11]} 21. Kg2 {[%emt 0:08:54]} Be7 {[%emt 0:16:53]} 22. f3 {[%emt 0:08:48]} Qc4 {[%emt 0:03:13]} 23. Rd2 {[%emt 0:05:00]} Ne6 {[%emt 0:09:26]} 24. Bh4 {[%emt 0:07:27]} Rxd2+ {[%emt 0:02:40]} 25. Qxd2 {[%emt 0:00:09]} Rd8 {[%emt 0:00:18]} 26. Qe3 {[%emt 0:02:04]} g5 {[%emt 0:00:11]} 27. Bxg5 {[%emt 0:04:36]} Bc5 {[%emt 0:00:06]} 28. b3 {[%emt 0:00:28]} Bxe3 {[%emt 0:01:06]} 29. bxc4 {[%emt 0:00:09]} Rd2+ {[%emt 0:00:37]} 0-1